Cogmind - Beta 9.6 @@@ ROGUE MODE // 2020.07.17 @ 01:00:42 Player: GGOBC-006 Result: Destroyed by S-10 Pest with Light Assault Rifle Performance ------------- Evolutions (0) 0 Regions Visited (2) 400 Robots Destroyed (16) 80 Value Destroyed (274) 274 Prototype IDs (0) 0 Alien Tech Used (0) 0 Bonus (-53) -53 TOTAL SCORE: 701 Bonus ------- Friendly Fire -53 Cogmind --------- Core Integrity 0/250 Matter 76/300 Energy 125/125 System Corruption 5% Temperature Cool (0) Movement Core (150) Ox2 Location -10/Mines Parts ------- > --- POWER (1) -------- Light Ion Engine > --- PROPULSION (2) --- (None) > --- UTILITY (2) ------ Improved Heat Sink Cooling System > --- WEAPON (2) ------- Assault Rifle Datajack > --- INVENTORY (4) ---- Light Ion Engine Compact Wheel Grenade Launcher Datajack Peak State ------------ > --- POWER ------------ Ion Engine > --- PROPULSION ------- Wheel Wheel > --- UTILITY ---------- Improved Terrain Scanner Improved Terrain Scanner > --- WEAPON ----------- Medium Laser Assault Rifle > --- INVENTORY -------- Compact Wheel [Rating: 9] Favorites ----------- Power Ion Engine Engine Ion Engine Propulsion Wheel Wheel Wheel Utility Cooling System Device Cooling System Weapon Assault Rifle Energy Gun Medium Laser Energy Cannon Beam Cannon Ballistic Gun Assault Rifle Launcher Grenade Launcher Special Melee Weapon Datajack Build | -11 -10 -10 ------- Run | Scr Mat Min Slots Evolved . | . . . Power . | . . . Propulsion . | . . . Utility . | . . . Weapon . | . . . Parts Attached 24 | 10 14 . Power 5 | 1 4 . Engine 5 | 1 4 . Core . | . . . Reactor . | . . . Propulsion 5 | 5 . . Treads . | . . . Leg . | . . . Wheel 5 | 5 . . Hover . | . . . Flight . | . . . Utility 5 | 2 3 . Device 5 | 2 3 . Storage . | . . . Processor . | . . . Hackware . | . . . Protection . | . . . Artifact . | . . . Weapon 9 | 2 7 . Energy Gun 2 | 1 1 . Energy Cannon 1 | . 1 . Ballistic Gun 2 | 1 1 . Ballistic Cannon . | . . . Launcher 2 | . 2 . Special Weapon . | . . . Impact Weapon . | . . . Slashing Weapon . | . . . Piercing Weapon . | . . . Special Melee Weapon 2 | . 2 . Unidentified Prototypes . | . . . Parts Lost 5 | . 4 1 Power 1 | . 1 . Propulsion 2 | . 1 1 Utility 1 | . 1 . Weapon 1 | . 1 . Highest Loss Streak 3 | . 3 1 Average Slot Usage (%) 93 | . 94 85 Engine 13 | . 13 14 Wheel 24 | . 25 14 Device 27 | . 27 28 Energy Gun 1 | . 2 . Energy Cannon 7 | . 8 . Ballistic Gun 12 | . 12 14 Launcher 2 | . 3 . Special Melee Weapon 2 | . . 14 Naked Turns . | . . . Heaviest Build 15 | 11 15 9 Greatest Support 26 | 26 20 10 Greatest Overweight (x) . | . . . Average Overweight (x) . | . . . Largest Inventory Capacity 4 | 4 4 4 Average Capacity 4 | 4 4 4 Most Carried 4 | 4 4 4 Average Carried 3 | 1 3 4 Final Capacity 4 | 4 4 4 Final Carried 4 | 4 4 4 Class Distribution -------------------- 100% | Mutant Dominant Class ---------------- Mutant | -10/Materials Mutant | -10/Mines Resources | -11 -10 -10 ----------- Run | Scr Mat Min Matter Collected 549 | 362 187 . Remotely . | . . . Salvage Created 425 | 198 227 . Parts 41 | 21 20 . Haulers Intercepted . | . . . Recyclers Shooed 1 | 1 . . Parts Field Recycled . | . . . Retrieved Matter . | . . . Parts Self-Destructed . | . . . Prevented . | . . . Kills | -11 -10 -10 ------- Run | Scr Mat Min Combat Hostiles Destroyed 7 | . 7 . Guns 2 | . 2 . Cannons 2 | . 2 . AOE 3 | . 3 . Classes Destroyed 7 | 3 4 . Worker 2 | 2 . . Tunneler 4 | 4 . . Recycler 1 | 1 . . Operator 1 | . 1 . Watcher 1 | . 1 . Swarmer 3 | . 3 . Grunt 4 | . 4 . Best Kill Streak 3 | 3 3 . Combat Bots Only 3 | . 3 . Max Kills in Single Turn 2 | 1 2 . Gunslinging . | . . . Exploded 2 | . 2 . Melee . | . . . Uniques/NPCs Destroyed . | . . . Combat | -11 -10 -10 -------- Run | Scr Mat Min Damage Taken 664 | . 641 23 Core 256 | . 249 7 Absorbed by Shields . | . . . Core Remaining (%) 100 | 100 . . Volleys Fired 100 | 32 68 . Largest 2 | 2 2 . Hottest 80 | 70 80 . Shots Fired 141 | 62 79 . Gun 98 | 62 36 . Cannon 26 | . 26 . Launcher 17 | . 17 . Special . | . . . Kinetic 68 | 32 36 . Thermal 56 | 30 26 . Explosive 17 | . 17 . Electromagnetic . | . . . Robot Hit Streak 8 | 7 8 . Robot Miss Streak 5 | 5 4 . Penetration Max . | . . . Secondary Targets . | . . . Shots Hit Robots 70 | 28 42 . Core Hits 24 | 8 16 . Critical Hits . | . . . Critical Kills . | . . . Critical Parts Destroyed . | . . . Melee Attacks 1 | . . 1 Impact . | . . . Slashing . | . . . Piercing . | . . . Sneak Attacks . | . . . Combat Hostiles . | . . . Follow-up Attacks . | . . . Damage Inflicted 1000 | 205 790 5 Guns 544 | 205 339 . Cannons 275 | . 275 . Explosions 169 | . 169 . Melee . | . . . Ramming 12 | . 7 5 Kinetic 469 | 130 339 . Thermal 350 | 75 275 . Explosive 169 | . 169 . Electromagnetic . | . . . Impact . | . . . Slashing . | . . . Piercing . | . . . Highest Corruption 5 | . . 5 Average Corruption 5 | . . 5 Corruption Purged . | . . . Overload Shots . | . . . Overflow Damage 11 | . 11 . Projectiles 11 | . 11 . Explosions . | . . . Melee . | . . . Knockbacks . | . . . Impact . | . . . Kinetic . | . . . Secondary . | . . . Self-Inflicted Damage 37 | . 35 2 Shots 1 | . 1 . Rammed 4 | . 2 2 Targets Rammed 4 | . 2 2 Kicked . | . . . Crushed . | . . . Highest Temperature 176 | 176 . . Average Temperature 68 | 68 . . Received Heat Transfer 342 | . 342 . Siege Activations . | . . . Robots Corrupted . | . . . Combat Hostiles . | . . . Parts Fried . | . . . Impact Corruptions . | . . . Robots Melted . | . . . Combat Hostiles . | . . . Parts Melted 1 | . 1 . Heat Transferred 814 | 222 592 . Parts Sabotaged . | . . . Parts Stolen . | . . . Parts Stripped . | . . . Power Chain Reactions . | . . . Missiles Intercepted . | . . . Alert | -11 -10 -10 ------- Run | Scr Mat Min Peak Influence 100 | 35 100 11 Average Influence 33 | 20 43 10 Maximum Alert Level . | . . . Low Security (%) 100 | 100 100 100 Level 1 . | . . . Level 2 . | . . . Level 3 . | . . . Level 4 . | . . . Level 5 . | . . . High Security . | . . . Max Security . | . . . Squads Dispatched . | . . . Investigation . | . . . Extermination . | . . . Reinforcement . | . . . Assault . | . . . Garrison . | . . . Intercept . | . . . Construction Impeded . | . . . Haulers Reinforced . | . . . Stealth | -11 -10 -10 --------- Run | Scr Mat Min Distress Signals 1 | . 1 . Communications Jammed . | . . . Distress Signals . | . . . Times Spotted 18 | . 14 4 Peak Tracking Total 4 | . 4 4 Tactical Retreats 1 | . 1 . Traps | -11 -10 -10 ------- Run | Scr Mat Min Traps Triggered . | . . . Indirectly . | . . . Trap Hack Attempts . | . . . Triggered . | . . . Disarmed . | . . . Reprogrammed . | . . . Reused . | . . . Traps Extracted . | . . . Installed . | . . . Triggered . | . . . Machines | -11 -10 -10 ---------- Run | Scr Mat Min Machines Disabled 3 | . 3 . Max in Single Turn 2 | . 2 . Machines Sabotaged . | . . . Garrisons Compromised . | . . . Overloaded Fab Kills . | . . . Fab Network Shutdowns . | . . . Hacking | -11 -10 -10 --------- Run | Scr Mat Min Machines Accessed 4 | . 4 . Terminals 4 | . 4 . Fabricators . | . . . Repair Stations . | . . . Recycling Units . | . . . Scanalyzers . | . . . Garrison Access . | . . . Total Hacks 12 | . 12 . Successful 7 | . 7 . Failed 5 | . 5 . Catastrophic 2 | . 2 . Database Lockouts . | . . . Manual 9 | . 9 . Terminals 12 | . 12 . Fabricators . | . . . Repair Stations . | . . . Recycling Units . | . . . Scanalyzers . | . . . Garrison Access . | . . . Terminal Hacks 2 | . 2 . Unreport Threat 2 | . 2 . Fabricator Hacks . | . . . Repair Station Hacks . | . . . Recycling Unit Hacks . | . . . Scanalyzer . | . . . Garrison Access Hacks . | . . . Unauthorized Hacks 5 | . 5 . Terminals 5 | . 5 . Track 3 | . 3 . Assimilate 1 | . 1 . Operators 1 | . 1 . Fabricators . | . . . Repair Stations . | . . . Recycling Units . | . . . Scanalyzers . | . . . Garrison Access . | . . . Data Cores Recovered . | . . . Used . | . . . Hacking Detections 4 | . 4 . Full Trace Events . | . . . Feedback Events . | . . . Feedback Blocked . | . . . Robot Schematics Acquired . | . . . Robots Built . | . . . Matter . | . . . Time . | . . . Total Robot Build Rating . | . . . Part Schematics Acquired . | . . . Parts Built . | . . . Matter . | . . . Time . | . . . Total Part Build Rating . | . . . Parts Repaired . | . . . Time . | . . . Parts Recycled . | . . . Recycled Matter . | . . . Retrieved Matter . | . . . Retrieved Components . | . . . Parts Scanalyzed . | . . . Part Schematics Acquired . | . . . Parts Damaged . | . . . Bothacking | -11 -10 -10 ------------ Run | Scr Mat Min Used RIF Installer . | . . . Robots Hacked . | . . . Non-combat . | . . . Combat . | . . . Robot Hacks Applied . | . . . Relay Couplers Released . | . . . Robots Rewired . | . . . Allies Hacked . | . . . Hacks Repelled . | . . . Allies | -11 -10 -10 -------- Run | Scr Mat Min Total Allies 1 | . 1 . Largest Group 1 | . 1 . Highest-Rated Group 10 | . 10 . Highest-Rated Ally 10 | . 10 . Total Orders . | . . . Ally Attacks . | . . . Total Damage . | . . . Kills . | . . . Allies Corrupted . | . . . Allies Melted . | . . . Intel | -11 -10 -10 ------- Run | Scr Mat Min Robot Analysis Total . | . . . Derelict Logs Recovered 2 | . . 2 Drone Launches . | . . . Drone Recoveries . | . . . Exploration | -11 -10 -10 ------------- Run | Scr Mat Min Turns Passed 846 | 224 528 94 Spaces Moved 660 | 134 415 111 Core 1 | 1 . . Treads . | . . . Legs . | . . . Wheels 659 | 133 415 111 Hover . | . . . Flight . | . . . Fastest Speed 50 | 50 80 80 Average Speed 80 | 82 80 80 Slowest Speed 90 | 90 80 80 Overloaded Moves . | . . . Propulsion Burnouts . | . . . Robots Hopped . | . . . Cave-ins Triggered . | . . . Exploration Rate (%) 33 | 5 61 35 Regions Visited 2 Branch Regions 1 Pre-discovered Areas 1 | . . 1 Known Exits Taken . | . . . Unknown Exits Taken 2 | 1 1 . Scrap Searched . | . . . Spaces Dug . | . . . Terrain Destroyed 128 | . 128 . Melee . | . . . Projectile . | . . . AOE 128 | . 128 . Actions | -11 -10 -10 --------- Run | Scr Mat Min Total 827 | 184 529 114 Wait 21 | . 21 . Move 658 | 133 414 111 Hop . | . . . Pick Up 7 | 5 2 . Fast Attach 13 | 7 6 . Attach 1 | . 1 . Detach 1 | . 1 . Swap 10 | 3 7 . Drop 11 | 4 7 . Fire 100 | 32 68 . Melee 1 | . . 1 Ram 4 | . 2 2 Kick . | . . . Crush . | . . . Escape Stasis . | . . . Rewire . | . . . Trap . | . . . Miscellaneous . | . . . Route ------- -11/Scrapyard -10/Materials (discovered 2 exits: [*Mat] / [*Min]) -10/Mines History --------- Turn | Location | Event 28 | -11/Scrapyard | Discovered new exit (range 16) 225 | -11/Scrapyard | Entered Materials 325 | -10/Materials | Build established: Mutant 531 | -10/Materials | Discovered new exit (range 12) 682 | -10/Materials | Core integrity fell below 50% 694 | -10/Materials | Core integrity fell below 20% 738 | -10/Materials | Lost 3 parts (1n1u1w) 743 | -10/Materials | Discovered new exit (range 10) 753 | -10/Materials | Entered Mines 754 | -10/Mines | Assembled infested the area 759 | -10/Mines | Learned location of Mines (-8) 847 | -10/Mines | Destroyed by S-10 Pest with Light Assault Rifle Last Messages --------------- G-47 Trooper destroyed. Acquired 51 matter. Acquired Imp. Heat Sink. Destroyed Hover Unit. Acquired Datajack. Acquired 17 matter. Dropped Lgt. Ion Engine. EXIT=FOUND LOCATION=UNKNOWN GOAL=ESCAPE ALERT: Infestation in the mines, dispatching Demolisher response squad. K-01 Serf collects debris. Acquired derelict log, extracted data. World map updated: -8/Mines. Acquired derelict log, extracted data. Data stored: Storage entrances (x1). Slammed into S-10 Pest. Wheel destroyed. System corrupted by crushing effect (+5). Slammed into S-10 Pest. Map ----- +----------------------------------------------------+ | | | | | | | | | | | | | | | | | | | | | ?????????????????????????????????????????????????? | | ?????????#####????????????####???????????????????? | | ???????### ##??????????## ##????????????????### | | ???????# #???????#### #?????####??????## | | ???##??# ##?????## ####### #??????# | | ??? ??# """ ####### #??????# | | ???# #?# """ ######## | | ???# #?## """ ######## #### ## ## | | ???# #??# ##??????##### #??## | | ???# #??## ##??????????# #???## | | ???# #???## #####??????# ###### | | #### ##???## #????### | | ###### ##???# a # #### | | #???#s#### #### | | #??#s#??# | | """ ##### #### #??#@#??####### | | """ #???# #???# ##??#s#????????## ## | | """ ??? #????########u#?????????## ### | | #???# #??????# r #??????????# ### | | #######???# #??????# #####??????????## ### | | ?????????? ??????# #???????????????####### | | ?????????? ??????# ???????????????????# | | ?????????? ??????# ## #?????????????????# | | ?????????? ??????# #?? ????????????????## | | ?????????? #??????# #???# ???????????????## | | ????????? #???????# #????? ???????????????## | | ????????? ????????# #??????##???????????????## | | ?????????? ????????# #????????????????????????### | | ??????????#???????? #??????????????????????????? | | ???????????????????###???????????????????????????? | | ?????????????????????????????????????????????????? | | ?????????????????????????????????????????????????? | | ?????????????????????????????????????????????????? | | ?????????????????????????????????????????????????? | | ?????????????????????????????????????????????????? | | ?????????????????????????????????????????????????? | | ?????????????????????????????????????????????????? | | ?????????????????????????????????????????????????? | | ?????????????????????????????????????????????????? | | ?????????????????????????????????????????????????? | +----------------------------------------------------+ Best States ------------- Heat Dissipation 69 Energy Generation 10 Energy Capacity 250 Matter Stores 266 Matter Capacity 300 Sight Range 16 Terrain Scan Range 16 Terrain Scan Density 10 Evasion (%) 44 Item Schematics ----------------- None Robot Schematics ------------------ None Fabricated ------------ Nothing Alien Tech Used ----------------- None Achievements -------------- None Challenges ------------ None Game ------ Seed ArcAluminumGreatsword Manual? 0 Play Time 00:09:50 Cumulative 40.2 hours Start 2020.07.17 @ 00:50:55 End 2020.07.17 @ 01:00:42 Sessions 1 Manual Loads 0 Difficulty Rogue Special Mode None Game No. 38 Rogue 38 Adventurer 0 Explorer 0 Win Type - Total 0 Types 0/0/0/0/0/0/0 Lore% 43 Gallery% 39 Achievement% 33 Wizard Run 0 Options --------- ASCII 0 Keyboard 0 Movement Numpad Keybinds 0 Fullscreen 2 Font 18/TerminusBold Map View 76x50 Tactical HUD 0 Map Filters NONE Filters NONE Steam 1 RUN: f0309abf-ebce-4b5a-a6a5-a75387fb7052